Cogmind - Beta 16.1 @@@ ROGUE MODE // 2026.03.01 @ 21:46:01 Player: GlasMayne Result: Destroyed by L-41 Fighter with Axe Performance ------------- Evolutions (3) 1500 Regions Visited (6) 1200 Robots Destroyed (62) 310 Value Destroyed (1907) 1907 Prototype IDs (2) 40 Alien Tech Used (0) 0 Bonus (0) 0 TOTAL SCORE: 4957 Bonus ------- None Cogmind --------- Core Integrity 0/700 Matter 26/300 Energy 100/100 System Corruption 7% Temperature Cool (2) Movement Core (1350) Ox26 Location -7/Factory Parts ------- > --- POWER (2) -------- (None) > --- PROPULSION (3) --- (None) > --- UTILITY (5) ------ Huge Storage Unit Core Analyzer > --- WEAPON (3) ------- (None) > --- INVENTORY (25) --- Light Ion Engine Carbon-fiber Leg VSS Leg Airjet Visual Processing Unit Sensor Array Target Analyzer Core Analyzer Particle Charger Weapon Cycler Light Armor Plating Graphene Brace Hacking Suite Relay Coupler [Hunter] (13) Component Analysis Suite Dynamic Insulation System Recalibrator Improved Field Recycling Unit (0) Shock Rifle Heavy Laser Plasma Cutter Flail Peak State ------------ > --- POWER ------------ Cooled Fission Core > --- PROPULSION ------- Armored Treads Armored Huge Wheel > --- UTILITY ---------- Huge Storage Unit Visual Processing Unit Improved Targeting Computer Advanced Targeting Computer Graphene Brace > --- WEAPON ----------- Heavy Assault Cannon > --- INVENTORY -------- Advanced Treads Advanced Treads Carbon-fiber Leg VSS Leg Airjet Visual Processing Unit Sensor Array Seismic Detector Target Analyzer Weapon Cycler Light Armor Plating EM Disruption Field Hacking Suite Component Analysis Suite Dynamic Insulation System Recalibrator Shock Rifle Heavy Assault Cannon Heavy Assault Cannon Gauss Cannon Plasma Cutter Flail [Rating: 45] Favorites ----------- Power Light Nuclear Core Engine Light Ion Engine Power Core Light Nuclear Core Propulsion Armored Wheel Treads Light Treads Leg Improved Aluminum Leg Wheel Armored Wheel Utility Visual Processing Unit Device Recalibrator Storage Huge Storage Unit Processor Visual Processing Unit Protection Medium Armor Plating Weapon Heavy Assault Cannon Energy Gun Spread Laser Ballistic Gun Assault Rifle Ballistic Cannon Heavy Assault Cannon Launcher Rocket Launcher Impact Weapon Impact Mace Build | -11 -10 -9 -8 -7 -7 -7 ------- Run | Yrd Mat Mat Mat Fac Was Fac Slots Evolved 6 | . . 2 2 2 . . Power 1 | . . . 1 . . . Propulsion 1 | . . . 1 . . . Utility 3 | . . 2 . 1 . . Weapon 1 | . . . . 1 . . Parts Attached 58 | 7 7 6 13 5 2 18 Power 14 | 1 1 . 4 1 1 6 Engine 7 | 1 1 . 3 . . 2 Core 7 | . . . 1 1 1 4 Reactor . | . . . . . . . Propulsion 15 | 2 . 4 5 2 . 2 Treads 9 | 2 . 2 2 1 . 2 Leg 2 | . . 2 . . . . Wheel 4 | . . . 3 1 . . Hover . | . . . . . . . Flight . | . . . . . . . Utility 15 | 1 2 1 3 2 1 5 Device 7 | . . . 1 1 1 4 Storage 3 | 1 1 1 . . . . Processor 4 | . 1 . 1 1 . 1 Hackware . | . . . . . . . Protection 1 | . . . 1 . . . Artifact . | . . . . . . . Weapon 14 | 3 4 1 1 . . 5 Energy Gun 2 | . 2 . . . . . Energy Cannon . | . . . . . . . Ballistic Gun 5 | 3 . 1 . . . 1 Ballistic Cannon 5 | . 1 . 1 . . 3 Launcher 1 | . 1 . . . . . Special Weapon . | . . . . . . . Impact Weapon 1 | . . . . . . 1 Slashing Weapon . | . . . . . . . Piercing Weapon . | . . . . . . . Special Melee Weapon . | . . . . . . . Unidentified Prototypes 2 | . . . . . 1 1 Parts Lost 22 | . . 1 . 5 3 13 Power 9 | . . . . 3 2 4 Propulsion 3 | . . . . 1 . 2 Utility 4 | . . . . 1 . 3 Weapon 6 | . . 1 . . 1 4 Highest Loss Streak 7 | . . 1 . 5 2 7 To Critical Strikes . | . . . . . . . Average Backups 18 | 4 7 9 17 22 22 22 Power . | . . 1 1 1 . . Propulsion 3 | 2 1 . 2 4 5 4 Utility 7 | . 2 2 4 8 11 13 Weapon 5 | . 3 5 8 7 5 3 Tool/Special . | . . . . . . . Unused Backups 28 | . 6 . . 4 . 18 Power . | . . . . . . . Propulsion 8 | . 4 . . 1 . 3 Utility 14 | . 1 . . 2 . 11 Weapon 5 | . 1 . . 1 . 3 Tool/Special 1 | . . . . . . 1 Average Slot Usage (%) 77 | . 96 79 80 80 55 68 Engine 7 | . 14 7 10 6 1 2 Core 4 | . . . 4 5 2 8 Treads 9 | . 28 11 14 2 3 6 Leg 1 | . . 10 . . . . Wheel 6 | . . . 4 17 7 3 Device 4 | . . . 2 11 5 2 Storage 9 | . 13 18 11 7 7 7 Processor 18 | . 11 11 17 18 23 23 Ballistic Gun 2 | . 9 3 1 . . 1 Ballistic Cannon 7 | . 5 11 9 7 3 6 Launcher 1 | . 5 6 . . . . Peak Build Rating 45 | 6 11 14 31 40 45 45 Average Rating 27 | 5 9 12 25 35 32 36 On Entrance 17 | . 6 11 10 31 40 23 Avg Prop Armor Cover (%) 7 | . . 10 8 7 11 . Naked Turns . | . . . . . . . Heaviest Build 113 | 12 53 98 113 105 107 107 Greatest Support 60 | 40 40 40 60 36 28 44 Greatest Overweight (x) 8 | . 1 4 8 4 3 3 Average Overweight (x) 2 | . . 1 2 3 2 2 Largest Inventory Capacity 25 | 8 20 25 25 25 25 25 Average Capacity 22 | 7 8 19 25 25 25 25 Most Carried 25 | 6 8 11 25 25 25 25 Average Carried 19 | 4 7 9 19 24 24 23 Final Capacity 25 | 8 8 25 25 25 25 25 Final Carried 25 | 6 8 11 25 24 25 22 Class Distribution -------------------- 100% | Mutant Dominant Class ---------------- Mutant | -10/Materials Mutant | -9/Materials Mutant | -8/Materials Mutant | -7/Factory Mutant | -7/Waste Mutant | -7/Factory Resources | -11 -10 -9 -8 -7 -7 -7 ----------- Run | Yrd Mat Mat Mat Fac Was Fac Matter Collected 1463 | 204 70 374 136 275 . 404 Remotely . | . . . . . . . Salvage Created 1581 | . 178 356 241 266 . 540 Parts 126 | . 33 33 23 16 . 21 Haulers Intercepted 3 | . . 1 1 . . 1 Recyclers Shooed 1 | . 1 . . . . . Parts Field Recycled . | . . . . . . . Retrieved Matter . | . . . . . . . Parts Self-Destructed . | . . . . . . . Prevented . | . . . . . . . Parts Restored 1 | . . . . 1 . . Broken 1 | . . . . 1 . . Kills | -11 -10 -9 -8 -7 -7 -7 ------- Run | Yrd Mat Mat Mat Fac Was Fac Combat Hostiles Destroyed 43 | . 10 13 4 5 . 11 Guns 8 | . 7 1 . . . . Cannons 26 | . . 7 4 5 . 10 AOE 9 | . 3 5 . . . 1 Classes Destroyed 14 | . 3 4 2 4 . 1 Worker 2 | . . . . . . 2 Builder 6 | . 3 1 1 . . 1 Hauler 3 | . . 1 1 . . 1 Recycler 2 | . . . . 1 . 1 Mechanic 1 | . . . 1 . . . Operator 2 | . . 1 . . . 1 Watcher 3 | . . . 1 1 . 1 Swarmer 12 | . 6 6 . . . . Grunt 17 | . 4 5 2 . . 6 Brawler 1 | . . 1 . . . . Sentry 6 | . . 1 2 . . 3 Hunter 2 | . . . . 2 . . Programmer 4 | . . . . 2 . 2 Heavy 1 | . . . . 1 . . Best Kill Streak 10 | . 6 10 4 1 . 8 Combat Bots Only 8 | . 3 8 2 1 . 4 Max Kills in Single Turn 4 | . 4 3 1 1 . 1 Gunslinging 1 | . 1 . . . . . Exploded 3 | . 2 3 . . . 1 Melee . | . . . . . . . Uniques/NPCs Destroyed . | . . . . . . . Combat | -11 -10 -9 -8 -7 -7 -7 -------- Run | Yrd Mat Mat Mat Fac Was Fac Hostile Shots Fired 553 | . 32 62 30 24 3 402 Missed 175 | . 11 21 10 10 1 122 Hits 378 | . 21 41 20 14 2 280 Melee 8 | . . 3 . . 2 3 Projectile 370 | . 21 38 20 14 . 277 Critical Strikes 7 | . . . 1 1 1 4 Actively Blocked 1 | . . . . . 1 . Damage Taken 4096 | . 178 489 228 427 93 2681 Core 887 | . 42 100 12 16 . 717 Absorbed by Shields 123 | . . . 65 58 . . Core Remaining (%) 88 | 100 83 75 97 . . . Volleys Fired 150 | . 17 28 37 16 1 51 Largest 2 | . 2 2 1 1 1 1 Hottest 130 | . 130 66 50 50 50 50 Shots Fired 181 | . 34 42 37 16 1 51 Gun 38 | . 28 10 . . . . Cannon 136 | . 3 28 37 16 1 51 Launcher 7 | . 3 4 . . . . Special . | . . . . . . . Kinetic 150 | . 7 38 37 16 1 51 Thermal 24 | . 24 . . . . . Explosive 7 | . 3 4 . . . . Electromagnetic . | . . . . . . . Robot Hit Streak 26 | . 7 9 6 5 5 26 Robot Miss Streak 12 | . 12 2 4 3 . 2 Penetration Max 1 | . . . 1 . . 1 Secondary Targets 1 | . 1 . . . . . Max Gunslinging Chain 1 | . 1 . . . . . Shots Hit Robots 132 | . 24 24 22 12 1 49 Core Hits 87 | . 33 23 7 6 . 18 Critical Kills . | . . . . . . . Critical Parts Destroyed . | . . . . . . . Critical Strikes 11 | . . 1 3 . . 7 Blast 10 | . . 1 3 . . 6 Smash 1 | . . . . . . 1 Melee Attacks 9 | . . . . . . 9 Impact 9 | . . . . . . 9 Slashing . | . . . . . . . Piercing . | . . . . . . . Sneak Attacks . | . . . . . . . Combat Hostiles . | . . . . . . . Follow-up Attacks . | . . . . . . . Damage Inflicted 5690 | . 688 774 1159 667 53 2349 Guns 367 | . 296 71 . . . . Cannons 4317 | . 19 383 1154 650 53 2058 Explosions 808 | . 373 320 . . . 115 Melee 176 | . . . . . . 176 Ramming 22 | . . . 5 17 . . Kinetic 4436 | . 67 454 1154 650 53 2058 Thermal 363 | . 248 . . . . 115 Explosive 693 | . 373 320 . . . . Electromagnetic . | . . . . . . . Impact 176 | . . . . . . 176 Slashing . | . . . . . . . Piercing . | . . . . . . . Highest Corruption 12 | . . 1 . . 12 12 Average Corruption 6 | . . 1 . . 8 7 Corruption Purged 5 | . . . . . . 5 Corruption Blocked . | . . . . . . . Effects 48 | . . 4 . . 6 38 Message Errors 8 | . . 1 . . 1 6 Matter Fused 14 | . . . . . 1 13 Heat Flow Errors 6 | . . 1 . . . 5 Energy Discharges 3 | . . . . . 1 2 Parts Rejected 6 | . . 2 . . 2 2 Parts Fused 2 | . . . . . . 2 Data Loss (minor) 3 | . . . . . . 3 Data Loss (major) 3 | . . . . . 1 2 Alerts 3 | . . . . . . 3 Overload Shots . | . . . . . . . Overflow Damage 389 | . 33 1 49 69 . 237 Projectiles 243 | . . . 49 69 . 125 Explosions 146 | . 33 1 . . . 112 Melee . | . . . . . . . Knockbacks 17 | . 1 1 5 2 . 8 Impact 1 | . . . 1 . . . Kinetic 14 | . 1 . 4 2 . 7 Secondary 2 | . . 1 . . . 1 Self-Inflicted Damage 105 | . . . 2 7 . 96 Shots 1 | . . . . . . 1 Rammed 6 | . . . 1 4 . 1 Targets Rammed 6 | . . . 1 4 . 1 Kicked . | . . . . . . . Crushed . | . . . . . . . Highest Temperature 364 | . 364 102 110 12 6 233 Average Temperature 75 | . 158 33 41 5 4 58 Received Heat Transfer 1089 | . 30 174 60 . . 825 Effects 2 | . 2 . . . . . Interference 2 | . 2 . . . . . Siege Activations . | . . . . . . . Martial Activations . | . . . . . . . Shielding Activations . | . . . . . . . Robots Disrupted . | . . . . . . . Combat Hostiles . | . . . . . . . Robots Corrupted . | . . . . . . . Combat Hostiles . | . . . . . . . Parts Fried . | . . . . . . . Impact Corruptions . | . . . . . . . Robots Melted . | . . . . . . . Combat Hostiles . | . . . . . . . Parts Melted . | . . . . . . . Heat Transferred 360 | . 310 . . . . 50 Parts Sabotaged . | . . . . . . . Parts Stolen . | . . . . . . . Parts Stripped . | . . . . . . . Power Chain Reactions . | . . . . . . . Alert | -11 -10 -9 -8 -7 -7 -7 ------- Run | Yrd Mat Mat Mat Fac Was Fac Maximum Alert Level 1 | . 1 1 . . . 1 Low Security (%) 87 | 100 91 29 100 100 100 83 Level 1 12 | . 8 70 . . . 16 Level 2 . | . . . . . . . Level 3 . | . . . . . . . Level 4 . | . . . . . . . Level 5 . | . . . . . . . High Security . | . . . . . . . Max Security . | . . . . . . . Peak Influence 338 | . 213 321 119 70 13 338 Initial 119 | . . 64 119 20 13 . Average 68 | . 85 208 23 14 1 113 Influence Increases 1774 | . 293 444 158 227 . 652 Destroy 0b10 Robot/C 860 | . 200 260 80 100 . 220 Destroy 0b10 Robot/NC 95 | . 15 15 20 10 . 35 Destroy Leader 252 | . 40 62 24 52 . 74 Trap Triggered on 0b10 10 | . . 10 . . . . Successful Hack 14 | . . 7 . 2 . 5 Disable Machine 105 | . 15 15 . 15 . 60 Anti-Garrison Action 150 | . . . . . . 150 Destroy Structure 93 | . 23 15 19 3 . 33 Lose Combat Pursuer 195 | . . 60 15 45 . 75 Influence Decreases 1529 | . 140 313 396 235 38 407 Entered New Map 305 | . . 89 165 26 25 . Time Decay 1066 | . 140 214 231 191 13 277 Lost Part 158 | . . 10 . 18 . 130 Squads Dispatched 12 | . 2 1 . 3 . 6 Investigation 3 | . 1 . . 1 . 1 Extermination 3 | . . . . 1 . 2 Reinforcement 4 | . 1 1 . 1 . 1 Assault 2 | . . . . . . 2 Garrison . | . . . . . . . Intercept . | . . . . . . . Searches Triggered . | . . . . . . . Construction Impeded . | . . . . . . . Haulers Reinforced . | . . . . . . . Active Scanning Responses . | . . . . . . . Cargo Convoy Interrupts . | . . . . . . . Stealth | -11 -10 -9 -8 -7 -7 -7 --------- Run | Yrd Mat Mat Mat Fac Was Fac Distress Signals 11 | . . 3 2 1 . 5 Communications Jammed . | . . . . . . . Distress Signals . | . . . . . . . Times Spotted 101 | . 17 23 13 12 4 32 Peak Tracking Total 9 | . 5 9 2 3 5 8 Tactical Retreats 8 | . . 2 1 3 . 2 Traps | -11 -10 -9 -8 -7 -7 -7 ------- Run | Yrd Mat Mat Mat Fac Was Fac Traps Triggered 2 | . . 1 . 1 . . Indirectly . | . . . . . . . Trap Hack Attempts . | . . . . . . . Triggered . | . . . . . . . Disarmed . | . . . . . . . Reprogrammed 3 | . . 3 . . . . Reused 1 | . . 1 . . . . Traps Extracted . | . . . . . . . Installed . | . . . . . . . Triggered 1 | . . 1 . . . . Machines | -11 -10 -9 -8 -7 -7 -7 ---------- Run | Yrd Mat Mat Mat Fac Was Fac Machines Disabled 8 | . 1 1 . 1 . 5 Max in Single Turn 2 | . 1 1 . 1 . 2 Garrison Access 2 | . . . . 1 . 1 Machines Repaired . | . . . . . . . Machines Dismantled . | . . . . . . . Machines Sabotaged . | . . . . . . . Overloaded Fab Kills . | . . . . . . . Hacking | -11 -10 -9 -8 -7 -7 -7 --------- Run | Yrd Mat Mat Mat Fac Was Fac Machines Accessed 14 | . 2 3 3 3 . 3 Terminals 10 | . 2 3 2 1 . 2 Fabricators . | . . . . . . . Repair Stations . | . . . . . . . Recycling Units 2 | . . . 1 . . 1 Scanalyzers 1 | . . . . 1 . . Garrison Access 1 | . . . . 1 . . Total Hacks 35 | . 6 9 3 11 . 6 Successful 23 | . 2 6 2 10 . 3 Failed 12 | . 4 3 1 1 . 3 Catastrophic 1 | . . . . 1 . . Database Lockouts . | . . . . . . . Manual 13 | . 6 4 2 . . 1 Terminals 20 | . 6 9 2 1 . 2 Fabricators . | . . . . . . . Repair Stations . | . . . . . . . Recycling Units 5 | . . . 1 . . 4 Scanalyzers 8 | . . . . 8 . . Garrison Access 2 | . . . . 2 . . Terminal Hacks 5 | . . 3 . 1 . 1 Open DSF 2 | . . . . 1 . 1 Emergency Access Points 1 | . . 1 . . . . Locate Traps 1 | . . 1 . . . . Reprogram Traps 1 | . . 1 . . . . Fabricator Hacks . | . . . . . . . Repair Station Hacks . | . . . . . . . Recycling Unit Hacks 3 | . . . 1 . . 2 Process 1 | . . . . . . 1 Report Inventory 1 | . . . 1 . . . Retrieve Matter 1 | . . . . . . 1 Scanalyzer 8 | . . . . 8 . . Insert Component 3 | . . . . 3 . . Analyze 3 | . . . . 3 . . Retrieve Study 2 | . . . . 2 . . Garrison Access Hacks 1 | . . . . 1 . . Seal Access 1 | . . . . 1 . . Unauthorized Hacks 6 | . 2 3 1 . . . Terminals 6 | . 2 3 1 . . . Botnet 5 | . 1 3 1 . . . Skim 1 | . 1 . . . . . Fabricators . | . . . . . . . Repair Stations . | . . . . . . . Recycling Units . | . . . . . . . Scanalyzers . | . . . . . . . Garrison Access . | . . . . . . . Data Cores Recovered 1 | . . . . . . 1 Used . | . . . . . . . Hacking Detections 11 | . 2 3 2 2 . 2 Full Trace Events 3 | . 1 . . 1 . 1 Feedback Events . | . . . . . . . Feedback Blocked . | . . . . . . . Robot Schematics Acquired . | . . . . . . . Robots Built . | . . . . . . . Authchips . | . . . . . . . Time . | . . . . . . . Total Robot Build Rating . | . . . . . . . Part Schematics Acquired 2 | . . . . 2 . . Parts Built . | . . . . . . . Authchips . | . . . . . . . Time . | . . . . . . . Total Part Build Rating . | . . . . . . . Part Studies Acquired 2 | . . . . 2 . . Parts Repaired . | . . . . . . . Time . | . . . . . . . Parts Recycled . | . . . . . . . Recycled Matter 127 | . . . . . . 127 Retrieved Matter 127 | . . . . . . 127 Retrieved Components . | . . . . . . . Parts Scanalyzed 3 | . . . . 3 . . Part Schematics Acquired 2 | . . . . 2 . . Parts Damaged . | . . . . . . . Bothacking | -11 -10 -9 -8 -7 -7 -7 ------------ Run | Yrd Mat Mat Mat Fac Was Fac Used RIF Installer . | . . . . . . . Robots Hacked . | . . . . . . . Non-combat . | . . . . . . . Combat . | . . . . . . . Robot Hacks Applied . | . . . . . . . Relay Couplers Released 2 | . . . . . . 2 Machine Destruction 2 | . . . . . . 2 Fabnet Peak Effective % . | . . . . . . . Robots Rewired . | . . . . . . . Allies Hacked . | . . . . . . . Hacks Repelled . | . . . . . . . Allies | -11 -10 -9 -8 -7 -7 -7 -------- Run | Yrd Mat Mat Mat Fac Was Fac Total Allies . | . . . . . . . Largest Group . | . . . . . . . Highest-Rated Group . | . . . . . . . Highest-Rated Ally . | . . . . . . . Total Orders . | . . . . . . . Ally Attacks . | . . . . . . . Total Damage . | . . . . . . . Kills . | . . . . . . . Allies Corrupted . | . . . . . . . Allies Melted . | . . . . . . . Intel | -11 -10 -9 -8 -7 -7 -7 ------- Run | Yrd Mat Mat Mat Fac Was Fac Active Infowar (turns) 3985 | . 328 458 919 996 213 1071 Optics 3985 | . 328 458 919 996 213 1071 Sensors 86 | . . . . . . 86 Seismic 155 | . . . . . . 155 Robot Analysis Total . | . . . . . . . Derelict Logs Recovered . | . . . . . . . Drone Launches . | . . . . . . . Drone Recoveries . | . . . . . . . Exploration | -11 -10 -9 -8 -7 -7 -7 ------------- Run | Yrd Mat Mat Mat Fac Was Fac Turns Passed 4175 | 124 393 458 919 996 213 1072 Spaces Moved 1919 | 69 182 159 286 642 151 430 Core 2 | 2 . . . . . . Treads 707 | 67 182 109 211 . . 138 Legs 50 | . . 50 . . . . Wheels 1160 | . . . 75 642 151 292 Hover . | . . . . . . . Flight . | . . . . . . . Fastest Speed 50 | 50 160 120 120 120 130 130 Average Speed 182 | 156 163 238 275 139 136 194 Slowest Speed 480 | 160 240 480 480 150 145 305 Overloaded Moves . | . . . . . . . Propulsion Burnouts . | . . . . . . . Robots Hopped . | . . . . . . . Potential Cave-ins . | . . . . . . . Cave-ins Triggered . | . . . . . . . Exploration Rate (%) 28 | 4 39 19 29 13 85 12 Regions Visited 6 Branch Regions . Pre-discovered Areas . | . . . . . . . Known Exits Taken . | . . . . . . . Unknown Exits Taken 4 | 1 1 1 1 . . . Scrap Searched . | . . . . . . . Spaces Dug 6 | . . . . . . 6 Terrain Destroyed 102 | . 22 17 21 3 . 39 Melee 3 | . . . . . . 3 Projectile 33 | . . 1 21 3 . 8 AOE 66 | . 22 16 . . . 28 Terrain Rammed . | . . . . . . . Walls Destroyed . | . . . . . . . Machines Disabled . | . . . . . . . Actions | -11 -10 -9 -8 -7 -7 -7 --------- Run | Yrd Mat Mat Mat Fac Was Fac Total 2333 | 82 247 197 356 724 155 572 Wait 110 | 1 21 . 7 30 . 51 Move 1914 | 68 181 158 285 642 150 430 Hop . | . . . . . . . Pick Up 53 | 6 11 5 10 13 1 7 Fast Attach 25 | 5 2 . 5 3 2 8 Attach 15 | 1 . 2 1 4 . 7 Detach 3 | . . . 2 . . 1 Swap 23 | 1 6 4 7 . 1 4 Drop 25 | . 9 . 1 12 . 3 Fire 150 | . 17 28 37 16 1 51 Melee 9 | . . . . . . 9 Ram 6 | . . . 1 4 . 1 Kick . | . . . . . . . Crush . | . . . . . . . Escape Stasis . | . . . . . . . Rewire . | . . . . . . . Trap . | . . . . . . . Miscellaneous . | . . . . . . . Route ------- -11/Scrapyard -10/Materials (discovered 3 exits: *Mat / [*Min] / [*Sub]) -9/Materials -8/Materials -7/Factory -7/Waste -7/Factory History --------- Turn | Location | Event 28 | -11/Scrapyard | Discovered new exit (range 15) 125 | -11/Scrapyard | Entered Materials 319 | -10/Materials | Build established: Mutant 323 | -10/Materials | Discovered new exit (range 9) 401 | -10/Materials | Discovered new exit (range 11) 510 | -10/Materials | Discovered new exit (range 4) 518 | -10/Materials | Entered another Materials area 518 | -9/Materials | Evolved 2 slots: Utility x2 685 | -9/Materials | Destroyed 8 combat bots 911 | -9/Materials | Discovered new exit (range 10) 976 | -9/Materials | Entered another Materials area 976 | -8/Materials | Evolved 2 slots: Power x1, Propulsion x1 1769 | -8/Materials | Discovered new exit (range 8) 1895 | -8/Materials | Entered Factory 1895 | -7/Factory | Evolved 2 slots: Utility x1, Weapon x1 2488 | -7/Factory | Lost 5 parts (3p1n1u) 2891 | -7/Factory | Sucked down chute 2891 | -7/Factory | Entered Waste 2906 | -7/Waste | EMP discharged 2906 | -7/Waste | Spotted C-40 Crusher 2907 | -7/Waste | Spotted C-40 Crusher 2934 | -7/Waste | Spotted C-40 Crusher 2944 | -7/Waste | Crushed by Compactor (1 part destroyed, 1 dropped) 2985 | -7/Waste | Crushed by Compactor (1 part destroyed, 1 dropped) 2999 | -7/Waste | Spotted C-40 Crusher 2999 | -7/Waste | Spotted C-40 Crusher 3006 | -7/Waste | EMP discharged 3006 | -7/Waste | System corruption reached 10% 3040 | -7/Waste | Spotted C-40 Crusher 3089 | -7/Waste | Discovered new exit (range 12) 3104 | -7/Waste | Entered Factory 3675 | -7/Factory | Core integrity fell below 50% 3711 | -7/Factory | Lost 4 parts (2p1n1w) 4167 | -7/Factory | Core integrity fell below 20% 4176 | -7/Factory | Destroyed by L-41 Fighter with Axe Last Messages --------------- 04160_ U-05 Engineer builds a Wall. 04161_ Lgt. Nuclear Core destroyed. 04161_ Adv. Treads severed. 04162_ Adv. Treads destroyed. 04162_ Critical hit (Burn: +37). 04162_ Slug penetrates L-41 Fighter. 04162_ L-41 Fighter knocked back. 04164_ Lgt. Nuclear Core destroyed. 04165_ L-41 Fighter knocked back. 04165_ Seismic Detector destroyed. 04167_ Slug penetrates L-41 Fighter. 04167_ Destroyed Carbon-fiber Leg. 04167_ L-41 Fighter knocked back. 04171_ Hvy. Assault Cannon+ destroyed. 04172_ Slammed into L-41 Fighter. 04172_ U-05 Engineer lays Concrete. 04173_ Adv. Targeting Computer destroyed. 04173_ U-05 Engineer lays Concrete. 04175_ Visual Processing Unit destroyed. 04175_ U-05 Engineer lays Concrete. Map ----- +----------------------------------------------------+ | | | | | | | | | | | | | | | | | | | | | | | | | | | | | ##????????##############?????????????????????????? | | #????????# #?????????????????????????? | | #????????# #?????????????????????????? | | #????????# #?????????????????????????? | | ########## #?????????????????????????? | | ## + #???#######???????????????? | | ## ####+#########???# #######+######??? | | ## ### ############ ??? | | ## " " ??? | | ## ### ############ ??? | | ## #?## ##??## % k # =## ??? | | ## # #??# #???#;;;;;@%#""+###????? ?????? | | # #??# #???# %g l u #????????????????? | | ## # #??# #???# gg u #???????? "??????? | | ?## ## #??# #???# k Y #?????? "??????? | | ??# ## #??# #???# #????"" ?????? | | ??# ## #??# ????# #?? "T "??????? | | ??# ## #??? ????##;;;;;;;;;### "" ""?????? | | ###+## #???+?????###### "" ""?????? | | %!%%# #??????????????# " ???? | | """%%# #??????????????# "%" #?? | | """= # #??????????????# #####+###### " #?? | | "" # #??????????????# #??????????????? #?? | | # +??????????????# #??????????????????? | | """ ######????????????? #??????????????????? | | """" #?????????????????###+## #??????????????????? | | "" #??????????????????? ?# #??????????????????? | | #?????????????????? ??# #??????????????????? | | ###+##????????????????? ??? #??????????????????? | | ??????????????????????"""???? #??????????????????? | | ??????????????????????"""???? #??????????????????? | | ????????????????????????????? #??????????????????? | | ????????????????????????????? #??????????????????? | | ????????????????????????????? ???????????????????? | | ????????????????????????????? ???????????????????? | | ????????????????????????????? ???????????????????? | +----------------------------------------------------+ Best States ------------- Heat Dissipation 34 Energy Generation 25 Energy Capacity 335 Matter Stores 300 Matter Capacity 300 Sight Range 18 Robot Scan Range 14 Terrain Scan Density 10 Armor Coverage 225 Evasion (%) 40 Targeting Accuracy 14 Core Analysis 6 Recoil Reduction 3 Particle Charging 15 Item Schematics ----------------- Hvy. Assault Cannon | -7/Factory | Scanalyzed Sensor Array | -7/Factory | Scanalyzed Robot Schematics ------------------ None Fabricated ------------ Nothing Repaired ---------- Nothing Studied --------- Hvy. Assault Cannon | -7/Factory | Hacked Arm. Treads | -7/Factory | Hacked Alien Tech Used ----------------- None Achievements -------------- Ew, Corruption I Laugh At Your Crits Throw Away The Key Challenges ------------ None Game ------ Seed MultitargetingCompactCharge Manual? 0 Play Time 00:41:41 Cumulative 26.6 hours Start 2026.02.24 @ 18:56:55 End 2026.03.01 @ 21:46:01 Sessions 3 Manual Loads 0 Difficulty Rogue Special Mode None Game No. 48 Rogue 48 Adventurer 0 Explorer 0 Win Type - Total 0 Types 0/0/0/0/0/0/0/0/0/0 Lore% 11 Gallery% 26 Achievement% 17 Wizard Run 0 Options --------- Layout 2 ASCII 0 Keyboard 1 Movement Numpad Keybinds 0 Fullscreen 1 Font 24/Smallcaps Map View 50x44 Zoom Use 0% Tactical HUD 1 Map Filters NONE Filters NONE Steam 1 RUN: c609cae9-fd2a-4a26-b880-11f0d6644f63